[Event "40th IND-chT Open 2020"]
[Site "Ahmedabad"]
[Date "2020.02.10"]
[Round "6.23"]
[White "Trivedi Karan R"]
[Black "Swapnil, Raj"]
[Result "1-0"]
[ECO "B11"]
[WhiteElo "1956"]
[BlackElo "1597"]
[Annotator "NA RC"]
[PlyCount "109"]
[EventDate "2020.02.05"]
[EventCountry "IND"]
[SourceTitle "playchess.com"]
[Source "ChessBase"]
[SourceQuality "1"]
[TimeControl "5400+30"]

{[%evp 26,109,-27,32767,32767,-56,-33,-42,-35,-43,-34,-40,-23,-35,10,32767,32767,0,32767,32767,16,10,8,32767,32767,32767,32767,32767,32767,32767,32767,32767,32767,32767,32767,32767,6,14,7,0,8,0,0,12,47,7,6,6,12,7,0,-5,0,0,0,0,0,-24,0,0,0,0,32767,354,346,143,117,73,32767,32767,197,179,32767,32767,32767,404,352,339,472,397,566,653,860,1160,841,1051]} 1. e4 {[%emt 0:00:00]} c6 {[%emt 0:00:32]} 2. Nc3 {[%emt 0:00:38]} d5 {[%emt 0:00:14]} 3. Nf3 {[%emt 0:00:09]} Bg4 {[%emt 0:00:53]} 4. h3 {[%emt 0:00:22]} Bxf3 {[%emt 0:00:23]} 5. Qxf3 {[%emt 0:00:15]} e6 {[%emt 0:00:19]} 6. exd5 {[%emt 0:01:49]} cxd5 {[%emt 0:01:18]} 7. Bb5+ {[%emt 0:03:16]} Nc6 {[%emt 0:00:27]} 8. O-O {[%emt 0:01:49]} Nf6 {[%emt 0:01:05]} 9. Re1 {[%emt 0:03:43]} Be7 {[%emt 0:02:47]} 10. d4 {[%emt 0:08:06]} O-O {[%emt 0:03:11] B11: Caro-Kann: Two Knights Variation.} 11. Be3 {[%emt 0:04:14]} Rc8 {[%emt 0:04:29] [#]} 12. Qd1 $146 {[%emt 0:01:58]} ({Predecessor:} 12. g4 Bb4 13. Bd3 e5 14. dxe5 Nxe5 15. Qf5 Nxd3 16. Qxd3 Bxc3 17. bxc3 Ne4 18. Bd4 {0-1 (28) Augereau,C (1837)-Djidjeli,S (2065) Avoine 2017}) 12... Bb4 {[%emt 0:05:34]} 13. Bd3 {[%emt 0:03:42]} Na5 {[%emt 0:01:33]} (13... Ne4 $5) 14. Bd2 {[%emt 0:10:00]} Nc4 {[%emt 0:01:18]} 15. Bxc4 {[%emt 0:01:09]} Rxc4 {[%emt 0:00:13]} 16. Ne2 {[%emt 0:00:52]} Bxd2 {[%emt 0:02:04]} 17. Qxd2 {[%emt 0:00:11]} Ne4 {[%emt 0:00:31]} 18. Qd3 {[%emt 0:01:19]} Qc7 {[%emt 0:06:41]} 19. c3 {[%emt 0:00:40]} Rc6 {[%emt 0:05:04]} 20. Nc1 {[%emt 0:01:04]} Qf4 {[%emt 0:05:32]} 21. Re2 {[%emt 0:04:19]} Rfc8 {[%emt 0:02:14]} 22. Qd1 {[%emt 0:02:22]} Qc7 {[%emt 0:09:02]} 23. Nd3 {[%emt 0:00:54]} Nd6 {[%emt 0:03:39]} 24. h4 {[%emt 0:06:26]} Ne4 {[%emt 0:07:29]} 25. Re3 {[%emt 0:01:44]} Qd8 {[%emt 0:02:16]} 26. Qg4 {[%emt 0:02:08]} Nf6 {[%emt 0:00:53]} 27. Qf4 {[%emt 0:00:51]} h6 {[%emt 0:09:50]} 28. Rae1 {[%emt 0:05:08]} Ne4 {[%emt 0:04:23]} 29. Ne5 {[%emt 0:03:07]} R6c7 {[%emt 0:00:27]} 30. Rf3 {[%emt 0:00:31]} Nd6 {[%emt 0:01:36]} 31. Qg4 {[%emt 0:07:45]} Nf5 {[%emt 0:01:06]} 32. g3 {[%emt 0:01:41]} b5 {[%emt 0:01:11]} 33. Nd3 {[%emt 0:01:03]} a5 {[%emt 0:00:42]} 34. a3 {[%emt 0:00:22]} Rc4 {[%emt 0:01:33]} 35. Qf4 {[%emt 0:23:53]} (35. Rxf5 $5 exf5 36. Qxf5 $14) 35... h5 {[%emt 0:03:56]} 36. Qd2 {[%emt 0:00:00]} R4c7 {[%emt 0:01:52]} 37. Qe2 {[%emt 0:00:00]} Nd6 {[%emt 0:01:20]} 38. Nf4 {[%emt 0:00:00]} Ne4 {[%emt 0:03:09]} 39. Nxh5 {[%emt 0:00:00]} b4 {[%emt 0:00:11]} 40. axb4 {[%emt 0:00:00]} axb4 {[%emt 0:00:01]} 41. cxb4 {[%emt 0:00:00]} Rc2 {[%emt 0:00:10]} 42. Qe3 {[%emt 0:00:00]} Rxb2 {[%emt 0:00:34]} 43. Qf4 {[%emt 0:00:00]} f5 {[%emt 0:00:26] [#]} 44. Qe5 $1 {[%emt 0:00:00] Double Attack} Qd7 {[%emt 0:00:48] [#]} 45. Nf4 {[%emt 0:00:00]} (45. Nxg7 $1 $18 {[%mdl 512]} Rc6 (45... Qxg7 46. Qxe6+) 46. Nh5) 45... Rxb4 {[%emt 0:02:21]} 46. Qxe6+ {[%emt 0:00:00]} (46. Nxe6 $142 Re8 47. Nc5 Rxe5 48. Nxd7) 46... Qxe6 {[%emt 0:00:07]} 47. Nxe6 {[%emt 0:00:00]} g6 $18 {[%emt 0:01:27]} (47... Rc6 $16) 48. Nf4 {[%emt 0:00:00]} Kh7 {[%emt 0:00:37]} 49. h5 {[%emt 0:00:00]} g5 {[%emt 0:00:46]} 50. Nxd5 {[%emt 0:00:00]} Rxd4 {[%emt 0:00:10]} 51. Rxf5 {[%emt 0:00:00]} Kg7 {[%emt 0:01:05]} 52. Re5 {[%emt 0:00:00]} Rd8 {[%emt 0:00:25]} 53. Nc7 {[%emt 0:00:00]} R8d7 {[%emt 0:01:03]} 54. Ne6+ {[%emt 0:00:00]} Kf6 {[%emt 0:00:02]} 55. R5xe4 {[%emt 0:00:05]} 1-0

[Event "40th IND-chT Open 2020"]
[Site "Ahmedabad"]
[Date "2020.02.10"]
[Round "6.24"]
[White "Utkarsh Bhatnagar"]
[Black "Sinha, Santosh Kumar"]
[Result "0-1"]
[ECO "A50"]
[WhiteElo "1659"]
[BlackElo "1942"]
[Annotator "NA"]
[PlyCount "130"]
[EventDate "2020.02.05"]
[EventCountry "IND"]
[SourceTitle "playchess.com"]
[Source "ChessBase"]
[SourceQuality "1"]
[TimeControl "5400+30"]

{[%evp 31,120,47,57,-18,-19,0,-8,-14,0,-114,32767,32767,-119,-140,-131,-125,-93,-121,-120,-145,-118,-162,-172,-171,32767,32767,-206,-187,32767,32767,-199,-173,-166,32767,-187,-215,-193,-212,-185,-177,-187,-226,-227,-225,32767,32767,32767,32767,32767,32767,32767,32767,32767,32767,32767,32767,32767,32767,32767,32767,-331,-342,-311,-405,-324,-339,32767,32767,32767,-408,-480,32767,-463,32767,-587,-566,-483,-454,-528,-644,-618,-614,-689,-654,-606,-512,-546,-593,-758,-815,-560]} 1. d4 {[%emt 1:30:30]} Nf6 {[%emt 1:30:30]} 2. c4 {[%emt 0:00:30]} g6 {[%emt 0:00:30]} 3. Nf3 {[%emt 0:00:30]} Bg7 {[%emt 0:00:30]} 4. g3 {[%emt 0:00:30]} b6 {[%emt 0:00:30]} 5. Bg2 {[%emt 0:00:30]} Bb7 {[%emt 0:00:30]} 6. O-O {[%emt 0:00:30]} O-O {[%emt 0:00:30]} 7. Qc2 {[%emt 0:00:30]} Be4 {[%emt 0:00:30]} 8. Qd1 {[%emt 0:00:30]} c5 {[%emt 0:00:30]} 9. Nc3 {[%emt 0:00:30]} Bb7 {[%emt 0:00:30]} 10. d5 {[%emt 0:00:30]} d6 {[%emt 0:00:30]} 11. e4 {[%emt 0:00:30]} Nbd7 {[%emt 0:00:30]} 12. h3 {[%emt 0:00:30] [#] A50: Queen's Fianchetto Defence (1 d4 Nf6 2 c4 b6).} Ba6 $146 {[%emt 0:00:30]} ({Predecessor (4):} 12... b5 13. cxb5 a6 14. bxa6 Bxa6 15. Re1 Ne8 16. Bf4 h6 17. Qc2 g5 18. Bd2 Rb8 19. Nd1 e6 20. Rb1 Qf6 {0-1 (71) Idani,P (2569)-Mamedov,R (2680) Abu Dhabi 2017}) 13. Qe2 {[%emt 0:00:30]} Ne8 {[%emt 0:00:30]} 14. Be3 {[%emt 0:00:30]} Nc7 {[%emt 0:00:30]} 15. a4 {[%emt 0:00:30]} Rb8 {[%emt 0:00:30]} 16. Nd2 {[%emt 0:00:30]} e6 {[%emt 0:00:30]} 17. f4 {[%emt 0:00:30]} ({White should try} 17. Nb5 $14) 17... exd5 {[%emt 0:00:30]} 18. exd5 {[%emt 0:00:30]} Re8 {[%emt 0:00:30]} 19. Kh2 {[%emt 0:00:30]} Bd4 {[%emt 0:00:30]} 20. Rf3 {[%emt 0:00:30]} (20. Nd1 $1 $11) 20... Bxc3 {[%emt 0:00:30]} 21. bxc3 {[%emt 0:00:30] [#]} Nxd5 $1 {[%emt 0:00:30]} 22. Qd3 {[%emt 0:00:30]} Nxe3 {[%emt 0:00:30]} 23. Rxe3 {[%emt 0:00:30]} Rxe3 {[%emt 0:00:30]} 24. Qxe3 {[%emt 0:00:30]} Nf6 {[%emt 0:00:30]} 25. Re1 {[%emt 0:00:30]} Qf8 {[%emt 0:00:30]} 26. Qd3 {[%emt 0:00:30] [#]} (26. Ne4 $17 {was necessary.} Nxe4 27. Qxe4) 26... d5 $1 {[%emt 0:00:30]} 27. Bxd5 {[%emt 0:00:30]} Nxd5 {[%emt 0:00:30]} 28. Qxd5 {[%emt 0:00:30]} Rd8 {[%emt 0:00:30]} 29. Qg2 {[%emt 0:00:30]} Rd3 {[%emt 0:00:30]} 30. Ne4 {[%emt 0:00:30]} Qd8 {[%emt 0:00:30]} ({Weaker is} 30... Bxc4 31. Nf6+ Kg7 32. Ne8+ Kh8 33. Qe4 $11) 31. Nf2 {[%emt 0:00:30]} Rd2 {[%emt 0:00:30]} 32. Kg1 {[%emt 0:00:30]} Bxc4 {[%emt 0:00:30]} 33. Qe4 {[%emt 0:00:30]} Be6 {[%emt 0:00:30]} 34. Qe5 {[%emt 0:00:30]} Qd5 {[%emt 0:00:30]} ({Worse is} 34... Qa8 35. Ne4 $11) 35. Qxd5 {[%emt 0:00:30]} Rxd5 {[%emt 0:00:30]} ({Don't take} 35... Bxd5 36. Re8+ Kg7 37. Rd8 $17) 36. Re2 {[%emt 0:00:30]} Rd8 {[%emt 0:00:30]} 37. h4 {[%emt 0:00:30]} h5 {[%emt 0:00:30]} 38. Rb2 {[%emt 0:00:30]} Bf5 {[%emt 0:00:30]} 39. a5 {[%emt 0:00:30]} Rd6 {[%emt 0:00:30]} 40. axb6 {[%emt 0:00:30]} axb6 {[%emt 0:00:30]} 41. Kg2 {[%emt 0:00:30]} Kf8 {[%emt 0:00:30]} 42. Kf3 {[%emt 0:00:30]} Ke7 {[%emt 0:00:30]} 43. Ke3 {[%emt 0:00:30]} Re6+ {[%emt 0:00:30]} 44. Kf3 {[%emt 0:00:30]} Kd8 {[%emt 0:00:30]} 45. Nd1 {[%emt 0:00:30]} Bg4+ {[%emt 0:00:30]} 46. Kf2 {[%emt 0:00:30]} Bxd1 {[%emt 0:00:30]} 47. Rd2+ {[%emt 0:00:30]} Kc7 {[%emt 0:00:30]} 48. Rxd1 {[%emt 0:00:30]} b5 {[%emt 0:00:30]} 49. f5 {[%emt 0:00:30]} Rf6 {[%emt 0:00:30]} 50. Kf3 {[%emt 0:00:30]} Rxf5+ {[%emt 0:00:30]} 51. Ke4 {[%emt 0:00:30]} Kc6 {[%emt 0:00:30]} 52. Rd8 {[%emt 0:00:30]} b4 {[%emt 0:00:30]} 53. c4 {[%emt 0:00:30]} Kc7 {[%emt 0:00:30]} 54. Ra8 {[%emt 0:00:30]} Kb7 {[%emt 0:00:30]} 55. Ra5 {[%emt 0:00:30]} Kb6 {[%emt 0:00:30]} 56. Rb5+ {[%emt 0:00:30]} Kc6 {[%emt 0:00:30]} 57. Rb8 {[%emt 0:00:30]} Rf6 {[%emt 0:00:30]} 58. Rc8+ {[%emt 0:00:30]} Kd6 {[%emt 0:00:30]} 59. Rd8+ {[%emt 0:00:30]} Kc7 {[%emt 0:00:30]} 60. Ra8 {[%emt 0:00:30]} Kb7 $19 {[%emt 0:00:30]} 61. Ra5 {[%emt 0:00:30]} Kb6 {[%emt 0:00:30]} 62. Ra8 {[%emt 0:00:30]} Rd6 {[%emt 0:00:30]} 63. Ke5 {[%emt 0:00:30]} Rd4 {[%emt 0:00:30]} 64. Kf6 {[%emt 0:00:30]} Rxc4 {[%emt 0:00:30]} 65. Kxf7 {[%emt 0:00:30]} Rg4 {[%emt 0:00:30]} 0-1